fUSD/lending_fUSD_20240812
["ID","MTS","AMOUNT","RATE_DAILY","PERIOD"]
[334682271,1723468265250,-1340.407504,0.00012,2]
[334682272,1723468265260,-151.0,0.00012,2]
[334682273,1723468265269,-931.857686,0.00012,2]
[334682274,1723468265279,-931.857685,0.00012,2]
[334682275,1723468265288,-151.0,0.00012,2]
[334682276,1723468265297,-600.0,0.00012,2]
[334682277,1723468265307,-254.515709,0.00012,2]
[334682278,1723468265316,-254.515715,0.00012,2]
[334682279,1723468265326,-232.0,0.00012,2]
[334682280,1723468265335,-151.0,0.00012,2]
[334682281,1723468265344,-1614.6,0.00012,2]
[334682282,1723468265354,-1614.6,0.00012,2]
[334682283,1723468265363,-1614.6,0.00012,2]
[334682284,1723468265373,-1614.6,0.00012,2]
[334682285,1723468265382,-1614.6,0.00012,2]
[334682286,1723468265392,-1614.6,0.00012,2]
[334682287,1723468265401,-1614.6,0.00012,2]
[334682288,1723468265415,-1614.6,0.00012,2]
[334682289,1723468265425,-1614.6,0.00012,2]
[334682290,1723468265437,-1614.6,0.00012,2]
[334682291,1723468265446,-1614.6,0.00012,2]
[334682292,1723468265456,-1614.6,0.00012,2]
[334682293,1723468265465,-1614.6,0.00012,2]
[334682294,1723468265475,-1614.6,0.00012,2]
[334682295,1723468265484,-1614.6,0.00012,2]
[334682296,1723468265493,-1614.6,0.00012,2]
[334682297,1723468265503,-1614.6,0.00012,2]
[334682298,1723468265512,-1614.6,0.00012,2]
[334682299,1723468265524,-1614.6,0.00012,2]
[334682300,1723468265533,-1614.6,0.00012,2]
[334682301,1723468265543,-1614.6,0.00012,2]
[334682302,1723468265552,-1614.6,0.00012,2]
[334682303,1723468265561,-1614.6,0.00012,2]
[334682304,1723468265571,-1614.6,0.00012,2]
[334682305,1723468265580,-1614.6,0.00012,2]
[334682306,1723468265590,-1614.6,0.00012,2]
[334682307,1723468265599,-1614.6,0.00012,2]
[334682308,1723468265609,-1614.6,0.00012,2]
[334682309,1723468265618,-1614.6,0.00012,2]
[334682310,1723468265628,-1614.6,0.00012,2]
[334682311,1723468265637,-1614.6,0.00012,2]
[334682312,1723468265646,-1614.6,0.00012,2]
[334682313,1723468265656,-1614.6,0.00012,2]
[334682314,1723468265666,-1614.6,0.00012,2]
[334682315,1723468265675,-1614.6,0.00012,2]
[334682316,1723468265685,-1614.6,0.00012,2]
[334682317,1723468265694,-1614.6,0.00012,2]
[334682318,1723468265704,-1614.6,0.00012,2]
[334682319,1723468265714,-1614.6,0.00012,2]
[334682320,1723468265724,-1614.6,0.00012,2]
[334682321,1723468265733,-1614.6,0.00012,2]
[334682322,1723468265743,-1614.6,0.00012,2]
[334682323,1723468265752,-1614.6,0.00012,2]
[334682324,1723468265762,-1614.6,0.00012,2]
[334682325,1723468265772,-1614.6,0.00012,2]
[334682326,1723468265781,-1614.6,0.00012,2]
[334682327,1723468265791,-1614.6,0.00012,2]
[334682328,1723468265801,-1614.6,0.00012,2]
[334682329,1723468265811,-1614.6,0.00012,2]
[334682330,1723468265820,-1614.6,0.00012,2]
[334682331,1723468265829,-1614.6,0.00012,2]
[334682332,1723468265839,-1614.6,0.00012,2]
[334682333,1723468265848,-1614.6,0.00012,2]
[334682334,1723468265858,-1614.6,0.00012,2]
[334682335,1723468265867,-1614.6,0.00012,2]
[334682336,1723468265876,-1614.6,0.00012,2]
[334682337,1723468265886,-1614.6,0.00012,2]
[334682338,1723468265895,-1614.6,0.00012,2]
[334682339,1723468265907,-1614.6,0.00012,2]
[334682340,1723468265920,-1614.6,0.00012,2]
[334682341,1723468265930,-1614.6,0.00012,2]
[334682342,1723468265939,-1614.6,0.00012,2]
[334682343,1723468265949,-1614.6,0.00012,2]
[334682344,1723468265959,-421.29,0.00012,2]
[334682345,1723468265968,-421.29,0.00012,2]
[334682346,1723468265978,-421.29,0.00012,2]
[334682347,1723468265987,-973.189028,0.00012,2]
[334682348,1723468265998,-973.189026,0.00012,2]
[334682349,1723468266008,-1009.64,0.00012,2]
[334682350,1723468266018,-1009.64,0.00012,2]
[334682351,1723468266028,-1009.64,0.00012,2]
[334682352,1723468266037,-1009.64,0.00012,2]
[334682353,1723468266047,-1009.64,0.00012,2]
[334682354,1723468266057,-1009.64,0.00012,2]
[334682355,1723468266066,-1009.64,0.00012,2]
[334682356,1723468266076,-1009.64,0.00012,2]
[334682357,1723468266086,-1009.64,0.00012,2]
[334682358,1723468266095,-1009.64,0.00012,2]
[334682359,1723468266104,-1009.64,0.00012,2]
[334682360,1723468266114,-1009.64,0.00012,2]
[334682361,1723468266124,-1009.64,0.00012,2]
[334682362,1723468266133,-1009.64,0.00012,2]
[334682363,1723468266143,-1009.64,0.00012,2]
[334682364,1723468266153,-1009.64,0.00012,2]
[334682365,1723468266163,-1009.64,0.00012,2]
[334682366,1723468266173,-1009.64,0.00012,2]
[334682367,1723468266183,-1009.64,0.00012,2]
[334682368,1723468266192,-1009.64,0.00012,2]
[334682369,1723468266202,-1009.64,0.00012,2]
[334682370,1723468266211,-1009.64,0.00012,2]
[334682371,1723468266220,-1009.64,0.00012,2]
[334682372,1723468266230,-1009.64,0.00012,2]
[334682373,1723468266239,-1009.64,0.00012,2]
[334682374,1723468266248,-1009.64,0.00012,2]
[334682375,1723468266257,-1009.64,0.00012,2]
[334682376,1723468266267,-1009.64,0.00012,2]
[334682377,1723468266276,-1009.64,0.00012,2]
[334682378,1723468266286,-1009.64,0.00012,2]
[334682379,1723468266296,-500.0,0.00012002,2]
[334682380,1723468266306,-500.0,0.00012011,2]
[334682381,1723468266315,-500.0,0.0001202,2]
[334682382,1723468266325,-500.0,0.00012029,2]
[334682383,1723468266334,-495.43,0.00012033,2]
[334682384,1723468266344,-500.0,0.00012037,2]
[334682385,1723468266354,-500.0,0.00012046,2]
[334682386,1723468266363,-44414.47,0.00012055,2]
[334682387,1723468266373,-227.227554,0.00012055,2]
[334682388,1723468266382,-151.0,0.00012055,2]
[334682389,1723468266392,-227.227554,0.00012055,2]
[334682390,1723468266402,-803.388965,0.00012055,2]
[334682391,1723468266413,-392.846601,0.00012055,2]
[334682392,1723468266422,-392.846601,0.00012055,2]
[334682393,1723468266432,-235.892359,0.00012055,2]
[334682394,1723468266442,-235.892359,0.00012055,2]
[334682395,1723468266453,-257.113054,0.00012055,2]
[334682396,1723468266462,-257.113057,0.00012055,2]
[334682397,1723468266471,-1244.122948,0.00012055,2]
[334682398,1723468266482,-1244.122948,0.00012055,2]
[334682399,1723468266491,-185.118147,0.00012055,2]
[334682400,1723468266501,-185.118147,0.00012055,2]
[334682401,1723468266510,-151.0,0.00012055,2]
[334682402,1723468266519,-1023.183856,0.00012055,2]
[334682403,1723468266530,-1023.183856,0.00012055,2]
[334682404,1723468266539,-152.595704,0.00012055,2]
[334682405,1723468266549,-152.595704,0.00012055,2]
[334682406,1723468266558,-500.0,0.00012055,2]
[334682407,1723468266567,-500.0,0.00012064,2]
[334682408,1723468266578,-500.0,0.00012073,2]
[334682409,1723468266587,-500.0,0.00012081,2]
[334682410,1723468266597,-500.0,0.0001209,2]
[334682411,1723468266606,-500.0,0.00012099,2]
[334682412,1723468266617,-2000.0,0.000121,2]
[334682413,1723468266626,-2000.0,0.000121,2]
[334682414,1723468266635,-513.2227,0.000121,2]
[334682415,1723468266644,-513.2227,0.000121,2]
[334682416,1723468266654,-3416.6757,0.000121,2]
[334682417,1723468266671,-3416.6757,0.000121,2]
[334682418,1723468266680,-2150.1538,0.000121,2]
[334682419,1723468266689,-2150.1538,0.000121,2]
[334682420,1723468266698,-500.0,0.00012108,2]
[334682421,1723468266708,-500.0,0.00012117,2]
[334682422,1723468266717,-314.0601173,0.00012117,2]
[334682423,1723468266726,-2271.6135028,0.00012117,2]
[334682424,1723468266735,-236.0483839,0.00012117,2]
[334682425,1723468266745,-306.3534917,0.00012117,2]
[334682426,1723468266754,-9229.6187418,0.00012117,2]
[334682427,1723468266764,-2929.9297027,0.00012117,2]
[334682428,1723468266773,-500.0,0.00012125,2]
[334682429,1723468266783,-500.0,0.00012134,2]
[334682430,1723468266792,-500.0,0.00012143,2]
[334682431,1723468266800,-500.0,0.00012152,2]
[334682432,1723468266810,-500.0,0.00012256,2]
[334682433,1723468266819,-500.0,0.00012264,2]
[334682434,1723468266828,-500.0,0.00012273,2]
[334682435,1723468266837,-500.0,0.00012282,2]
[334682436,1723468266847,-500.0,0.00012282,2]
[334682437,1723468266856,-147388.76978328,0.000123,2]
[334682438,1723468266865,-1968.70521672,0.000123,2]
[334682439,1723468266874,-202.18141565,0.00012342,2]
[334682440,1723468266883,-402.21279334,0.00012342,2]
[334682441,1723468266892,-207.89,0.00012358,2]
[334682442,1723468266901,-5000.0,0.0001236,2]
[334682443,1723468266913,-14061.05713539,0.00012433,2]
[334682444,1723468266922,-314.0601173,0.00012451,2]
[334682445,1723468266932,-1888.9263103,0.00012451,2]
[334682446,1723468266941,-236.0483839,0.00012451,2]
[334682447,1723468266950,-306.3534917,0.00012451,2]
[334682448,1723468266959,-7676.2371259,0.00012451,2]
[334682449,1723468266968,-2437.2830483,0.00012451,2]
[334682450,1723468266977,-495.43,0.00012458,2]
[334682451,1723468266986,-697618.35206481,0.0001246,2]
[334682452,1723468266995,-227.227554,0.0001246,2]
[334682453,1723468267005,-151.0,0.0001246,2]
[334682454,1723468267014,-227.227553,0.0001246,2]
[334682455,1723468267023,-803.388974,0.0001246,2]
[334682456,1723468267033,-392.846601,0.0001246,2]
[334682457,1723468267042,-392.846596,0.0001246,2]
[334682459,1723468267052,-235.892359,0.0001246,2]
[334682460,1723468267061,-235.892352,0.0001246,2]
[334682461,1723468267070,-1244.122948,0.0001246,2]
[334682462,1723468267079,-1244.122949,0.0001246,2]
[334682463,1723468267089,-185.118147,0.0001246,2]
[334682464,1723468267099,-185.118154,0.0001246,2]
[334682465,1723468267108,-151.0,0.0001246,2]
[334682466,1723468267118,-1023.183856,0.0001246,2]
[334682467,1723468267126,-1023.183857,0.0001246,2]
[334682468,1723468267136,-152.595704,0.0001246,2]
[334682469,1723468267145,-152.595704,0.0001246,2]
[334682470,1723468267154,-200.0,0.00012473,2]
[334682471,1723468267164,-202.65991842,0.00012473,2]
[334682472,1723468267174,-200.2498969,0.00012473,2]
[334682473,1723468267183,-507.84,0.00012492,2]
[334682474,1723468267192,-289.85995294,0.000125,2]
[334682475,1723468267201,-1000.0,0.000125,2]
[334682476,1723468267211,-232.0,0.000125,2]
[334682477,1723468267220,-166.9,0.0001259,2]
[334682478,1723468267229,-150.03785712,0.00012619,5]
[334682479,1723468267239,-492.16,0.00012653,2]
[334682480,1723468267247,-2000.0,0.000127,2]
[334682481,1723468267257,-706.42,0.00012738,2]
[334682482,1723468267266,-153.28,0.00012846,2]
[334682483,1723468267276,-495.43,0.00012884,2]
[334682484,1723468267285,-179.99,0.00012893,2]
[334682485,1723468267295,-15420.25918131,0.00013,2]
[334682486,1723468267304,-300.0,0.00013,2]
[334682487,1723468267314,-232.0,0.00013,2]
[334682488,1723468267324,-5041.66499582,0.0001305,2]
[334682489,1723468267333,-2000.0,0.000131,2]
[334682490,1723468267343,-2000.0,0.000131,2]
[334682491,1723468267352,-600.0,0.0001324,2]
[334682492,1723468267362,-400.0,0.00013242,2]
[334682493,1723468267371,-400.0,0.00013242,2]
[334682494,1723468267381,-495.43,0.0001331,2]
[334682495,1723468267391,-155.0,0.0001331,2]
[334682496,1723468267401,-155.0,0.000134,2]
[334682497,1723468267412,-600.0,0.00013405,2]
[334682498,1723468267421,-1000.0,0.000135,2]
[334682499,1723468267431,-1000.0,0.000135,3]
[334682500,1723468267443,-232.0,0.000135,2]
[334682501,1723468267454,-8500.0,0.00013502,2]
[334682502,1723468267464,-8500.0,0.00013511,2]
[334682503,1723468267473,-8500.0,0.0001352,2]
[334682504,1723468267484,-8500.0,0.00013529,2]
[334682505,1723468267493,-8500.0,0.00013537,2]
[334682506,1723468267503,-2880.76683661,0.00013537,2]
[334682507,1723468267512,-600.0,0.00013571,2]
[334682508,1723468267522,-207.89,0.00013593,2]
[334682509,1723468267531,-750.0,0.00013642,2]
[334682510,1723468267540,-750.0,0.00013651,2]
[334682511,1723468267549,-339.82408651,0.00013651,2]
[334682512,1723468267559,-151.0,0.00013699,2]
[334682513,1723468267567,-152.914675,0.00013699,2]
[334682514,1723468267576,-8737.07,0.00013699,2]
[334682515,1723468267586,-2333.92,0.00013699,2]
[334682516,1723468267595,-514.63,0.00013699,2]
[334682517,1723468267605,-500.0,0.00013699,2]
[334682518,1723468267614,-200.0,0.00013699,2]
[334682519,1723468267623,-2751.0,0.00013699,2]
[334682520,1723468267632,-150.0,0.00013699,2]
[334682521,1723468267642,-300.0,0.00013699,2]
[334682522,1723468267651,-300.0,0.00013699,2]
[334682523,1723468267663,-300.0,0.00013699,2]
[334682524,1723468267674,-300.0,0.00013699,2]
[334682525,1723468267683,-300.0,0.00013699,2]
[334682526,1723468267693,-300.0,0.00013699,2]
[334682527,1723468267702,-300.0,0.00013699,2]
[334682528,1723468267711,-300.0,0.00013699,2]
[334682529,1723468267720,-300.0,0.00013699,2]
[334682530,1723468267729,-300.0,0.00013699,2]
[334682531,1723468267738,-521.55234375,0.00013699,2]
[334682532,1723468267748,-300.0,0.00013699,2]
[334682533,1723468267757,-300.0,0.00013699,2]
[334682534,1723468267766,-300.0,0.00013699,2]
[334682535,1723468267775,-300.0,0.00013699,2]
[334682536,1723468267784,-303.5576006,0.00013699,2]
[334682537,1723468267794,-150.0,0.00013699,2]
[334682538,1723468267803,-2000.0,0.000137,2]
[334682539,1723468267812,-202.159,0.00013722,2]
[334682540,1723468267822,-14011.87,0.00013722,2]
[334682541,1723468267831,-495.43,0.00013735,2]
[334682542,1723468267841,-600.0,0.00013736,2]
[334682543,1723468267850,-507.84,0.00013741,2]
[334682544,1723468267860,-200.0,0.00013773,2]
[334682545,1723468267870,-179.28315404,0.00013773,2]
[334682546,1723468267879,-314.0601173,0.00013791,2]
[334682547,1723468267888,-1506.2391177,0.00013791,2]
[334682548,1723468267897,-300.0,0.00013799,2]
[334682549,1723468267909,-300.0,0.00013799,2]
[334682550,1723468268045,-300.0,0.00013799,2]
[334682551,1723468268055,-300.0,0.00013799,2]
[334682552,1723468268064,-300.0,0.00013799,2]
[334682553,1723468268073,-300.0,0.00013799,2]
[334682554,1723468268082,-300.0,0.00013799,2]
[334682555,1723468268091,-300.0,0.00013799,2]
[334682556,1723468268100,-300.0,0.00013799,2]
[334682557,1723468268109,-300.0,0.00013799,2]
[334682558,1723468268117,-300.0,0.00013799,2]
[334682559,1723468268126,-300.0,0.00013799,2]
[334682560,1723468268135,-300.0,0.00013799,2]
[334682561,1723468268144,-300.0,0.00013799,2]
[334682562,1723468268153,-400.0,0.00013842,2]
[334682563,1723468268163,-236.0483839,0.0001389,2]
[334682564,1723468268172,-306.3534917,0.0001389,2]
[334682565,1723468268181,-6122.85551,0.0001389,2]
[334682566,1723468268191,-1944.6363939,0.0001389,2]
[334682567,1723468268200,-300.0,0.00013899,2]
[334682568,1723468268209,-300.0,0.00013899,2]
[334682569,1723468268219,-300.0,0.00013899,2]
[334682570,1723468268228,-300.0,0.00013899,2]
[334682571,1723468268237,-300.0,0.00013899,2]
[334682572,1723468268246,-300.0,0.00013899,2]
[334682573,1723468268255,-300.0,0.00013899,2]
[334682574,1723468268264,-300.0,0.00013899,2]
[334682575,1723468268274,-300.0,0.00013899,2]
[334682576,1723468268283,-300.0,0.00013899,2]
[334682577,1723468268293,-300.0,0.00013899,2]
[334682578,1723468268303,-300.0,0.00013899,2]
[334682579,1723468268312,-300.0,0.00013899,2]
[334682580,1723468268321,-399223.64697399,0.000139,2]
[334682581,1723468268765,-1044.795,0.000139,2]
[334682582,1723468268777,-440.96864,0.000139,2]
[334682583,1723468268789,-478.75263346,0.000139,2]
[334682584,1723468269154,-151.0,0.00011,2]
[334682585,1723468269166,-151.0,0.00011,2]
[334682586,1723468269175,-18.17187164,0.000139,2]
[334682587,1723468269892,-130091.39041991,0.000139,2]
[334682588,1723468269902,-600.0,0.00013902,2]
[334682589,1723468269914,-492.16,0.00013919,2]
[334682590,1723468269923,-14061.05713539,0.00013967,2]
[334682591,1723468269933,-237.9,0.00013973,2]
[334682592,1723468269942,-322.93,0.00013973,2]
[334682593,1723468269951,-155.87,0.00013973,2]
[334682594,1723468269961,-323.99,0.00013973,2]
[334682595,1723468269970,-1419.43500245,0.00014,2]
[334682596,1723468269979,-1002.0,0.00014,3]
[334682597,1723468269989,-266.91619313,0.00014,2]
[334682598,1723468269999,-7885.972124,0.00014,2]
[334682599,1723468270009,-150.0,0.00014,2]
[334682600,1723468270018,-150.0,0.00014,2]
[334682601,1723468270028,-150.0,0.00014,2]
[334682602,1723468270037,-150.0,0.00014,2]
[334682603,1723468270047,-150.0,0.00014,2]
[334682604,1723468270056,-1257.0,0.00014,2]
[334682605,1723468270066,-622.0,0.00014,2]
[334682606,1723468270075,-1924.0,0.00014,2]
[334682607,1723468270085,-1542.0,0.00014,2]
[334682608,1723468270093,-551.0,0.00014,2]
[334682609,1723468270103,-1895.0,0.00014,2]
[334682610,1723468270112,-3291.0,0.00014,2]
[334682611,1723468270122,-1186.0,0.00014,2]
[334682612,1723468270131,-650.0,0.00014,2]
[334682613,1723468270140,-232.0,0.00014,2]
[334682614,1723468270149,-2000.0,0.000141,2]
[334682615,1723468270161,-2000.0,0.000141,2]
[334682616,1723468270172,-155.0,0.00014105,2]
[334682617,1723468270181,-495.43,0.00014161,2]
[334682618,1723468270191,-151.0,0.00014201,2]
[334682619,1723468270200,-382.87672855,0.00014247,2]
[334682620,1723468270209,-8737.07,0.00014384,2]
[334682621,1723468270218,-1000.0,0.000145,3]
[334682622,1723468270228,-232.0,0.000145,2]
[334682623,1723468270237,-495.43,0.00014586,2]
[334682624,1723468270247,-9207.38053329,0.00014696,2]
[334682625,1723468270256,-2000.0,0.000147,2]
[334682626,1723468270265,-207.89,0.00014829,2]
[334682627,1723468270275,-211.50832483,0.000149,2]
[334682628,1723468270284,-211.50832482,0.000149,2]
[334682629,1723468270293,-507.84,0.0001499,2]
[334682630,1723468270303,-706.42,0.00014998,2]
[334682631,1723468270313,-155.73849284,0.00015,2]
[334682632,1723468270322,-14238.27847648,0.00015,2]
[334682633,1723468270332,-495.0,0.00015,2]
[334682634,1723468270341,-76.79566811,0.00015,2]
[334682635,1723468270359,-119.19194342,0.00015,2]
[334682636,1723468270368,-381.38633283,0.00015,2]
[334682637,1723468270848,-151.0,0.00011,2]
[334682638,1723468270857,-151.0,0.00011,2]
[334682639,1723468270867,-151.0,0.00011,2]
[334682640,1723468270877,-151.0,0.00011,2]
[334682641,1723468270886,-54.88808244,0.00011,2]
[334682642,1723468270898,-96.11191756,0.00011,2]
[334682643,1723468270911,-151.0,0.00011105,2]
[334682644,1723468270925,-151.0,0.00011105,2]
[334682645,1723468270934,-151.0,0.00011186,2]
[334682646,1723468270944,-113.61366717,0.00015,2]
[334682647,1723468270954,-194.77028805,0.00015,2]
[334682648,1723468270963,-1930.58974385,0.00015,2]
[334682649,1723468270973,-3861.39986013,0.00015,2]
[334682650,1723468270989,-769.05650803,0.00015,2]
[334682651,1723468271000,-684.36699985,0.00015,2]
[334682652,1723468271012,-379.71008372,0.00015,2]
[334682653,1723468271023,-794.89183922,0.00015,2]
[334682654,1723468271034,-969.24224833,0.00015,2]
[334682655,1723468271045,-2261.41675844,0.00015,2]
[334682656,1723468271054,-8216.0,0.00015,2]
[334682657,1723468271064,-1451.96564343,0.00015,2]
[334682658,1723468271241,-1471.0,0.00015,2]
[334682659,1723468271252,-1012.9,0.00015,2]
[334682660,1723468271261,-317.16,0.00015,2]
[334682661,1723468271271,-232.0,0.00015,2]
[334682662,1723468271281,-150.0,0.00015,2]
[334682663,1723468271291,-8737.07,0.00015068,2]
[334682664,1723468271300,-300.0,0.00015068,2]
[334682665,1723468271309,-500.0,0.000151,2]
[334682666,1723468271320,-2000.0,0.000151,2]
[334682667,1723468271329,-2000.0,0.000151,2]
[334682668,1723468271338,-166.9,0.00015108,2]
[334682669,1723468271347,-400.0,0.00015142,2]
[334682670,1723468271357,-357.17,0.00015151,2]
[334682671,1723468271366,-3162.15800497,0.00015154,2]
[334682672,1723468271375,-492.16,0.00015184,2]
[334682673,1723468271385,-624.33214489,0.00015369,2]
[334682674,1723468271395,-153.28,0.00015415,2]
[334682675,1723468271404,-232.0,0.000155,3]
[334682676,1723468271423,-14061.05713539,0.000155,2]
[334682677,1723468271433,-152.0,0.00015527,3]
[334682678,1723468271443,-2856.18453664,0.000156,2]
[334682679,1723468271456,-554.4,0.000157,2]
[334682680,1723468271465,-5031.54368283,0.00015749,2]
[334682681,1723468271475,-5000.0,0.00015749,2]
[334682682,1723468271486,-5000.0,0.00015749,2]
[334682683,1723468271495,-5000.0,0.00015749,2]
[334682684,1723468271505,-5000.0,0.00015749,2]
[334682685,1723468271516,-8737.07,0.00015753,2]
[334682686,1723468271527,-152.0,0.00015818,4]
[334682687,1723468271537,-163.1,0.00015831,2]
[334682688,1723468271547,-170.9,0.00015831,2]
[334682689,1723468271557,-600.0,0.00015846,2]
[334682690,1723468271567,-826.69206212,0.00015883,2]
[334682691,1723468271577,-1464.7186294,0.00016,3]
[334682692,1723468271586,-1500.0,0.00016,3]
[334682693,1723468271596,-700.0,0.00016,2]
[334682694,1723468271606,-2000.0,0.00016,2]
[334682695,1723468271616,-232.0,0.00016,3]
[334682696,1723468271625,-3000.0,0.00016,2]
[334682697,1723468271635,-2000.0,0.0001601,2]
[334682698,1723468271645,-2000.0,0.0001602,2]
[334682699,1723468271654,-2779.787221,0.0001603,2]
[334682700,1723468271670,-554.4,0.000161,2]
[334682701,1723468271680,-554.399999,0.000161,2]
[334682702,1723468271689,-152.0,0.00016109,5]
[334682703,1723468271700,-9999.99,0.00016116,2]
[334682704,1723468271710,-1012.9,0.00016325,2]
[334682705,1723468271720,-200.0,0.0001634,2]
[334682706,1723468271729,-152.0,0.000164,6]
[334682707,1723468271739,-2000.0,0.00016438,2]
[334682708,1723468271748,-8737.07,0.00016438,2]
[334682709,1723468271758,-300.0,0.00016438,2]
[334682710,1723468271767,-707.9,0.00016438,2]
[334682711,1723468271777,-1764.09435652,0.000165,2]
[334682712,1723468271787,-232.0,0.000165,4]
[334682713,1723468271796,-9140.21,0.000165,7]
[334682714,1723468271805,-317.16,0.00016585,2]
[334682715,1723468271815,-152.0,0.00016691,7]
[334682716,1723468271824,-2000.0,0.00016712,2]
[334682717,1723468271833,-162.74,0.00016712,2]
[334682718,1723468271843,-794.0,0.00016719,2]
[334682719,1723468271852,-794.0,0.00016719,2]
[334682720,1723468271862,-794.0,0.00016719,2]
[334682721,1723468271872,-158.86701752,0.000168,2]
[334682722,1723468271881,-183.70762414,0.000169,2]
[334682723,1723468271891,-1123.5519251,0.00016958,2]
[334682724,1723468271901,-152.0,0.00016982,8]
[334682725,1723468271914,-2000.0,0.00016986,2]
[334682726,1723468271923,-897.09,0.00016986,2]
[334682727,1723468271933,-150.0,0.00017,2]
[334682728,1723468271942,-150.0,0.00017,2]
[334682729,1723468271952,-150.0,0.00017,2]
[334682730,1723468271961,-1257.0,0.00017,2]
[334682731,1723468271971,-622.0,0.00017,2]
[334682732,1723468271980,-1924.0,0.00017,2]
[334682733,1723468271989,-1542.0,0.00017,2]
[334682734,1723468271999,-437.848,0.00017,2]
[334682735,1723468272008,-1895.0,0.00017,2]
[334682736,1723468272017,-278.477,0.00017,2]
[334682737,1723468272027,-1186.0,0.00017,2]
[334682738,1723468272037,-232.0,0.00017,4]
[334682739,1723468272046,-1406.13177639,0.00017004,2]
[334682740,1723468272055,-14061.05713539,0.00017033,2]
[334682741,1723468272064,-163.1,0.00017137,2]
[334682742,1723468272074,-170.9,0.00017137,2]
[334682743,1723468272083,-351.88704109,0.00017146,2]
[334682744,1723468272093,-706.42,0.00017258,2]
[334682745,1723468272103,-2000.0,0.0001726,2]
[334682746,1723468272113,-152.0,0.00017273,9]
[334682747,1723468272122,-232.0,0.000175,5]
[334682748,1723468272132,-2000.0,0.00017534,2]
[334682749,1723468272142,-514.63,0.00017534,2]
[334682750,1723468272151,-152.0,0.00017564,10]
[334682751,1723468272164,-794.0,0.00017599,2]
[334682752,1723468272174,-794.0,0.00017599,2]
[334682753,1723468272183,-794.0,0.00017599,2]
[334682754,1723468272192,-3106.58465722,0.00017631,2]
[334682755,1723468272202,-223.39732562,0.00017631,2]
[334682756,1723468272211,-1012.9,0.0001765,2]
[334682757,1723468272220,-1529.01,0.00017728,2]
[334682758,1723468272230,-151.21491216,0.00017751,2]
[334682759,1723468272239,-2000.0,0.00017808,2]
[334682760,1723468272248,-7390.55,0.00017808,2]
[334682761,1723468272259,-152.0,0.00017854,11]
[334682762,1723468272268,-549.1144139,0.00017991,2]
[334682763,1723468272277,-184.83140106,0.00017991,2]
[334682764,1723468272287,-150.0,0.00017991,2]
[334682765,1723468272297,-150.0,0.00017991,2]
[334682766,1723468272307,-150.0,0.00017991,2]
[334682767,1723468272317,-150.0,0.00017991,2]
[334682768,1723468272327,-150.0,0.00017991,2]
[334682769,1723468272337,-150.0,0.00017991,2]
[334682770,1723468272346,-150.0,0.00017991,2]
[334682771,1723468272356,-150.0,0.00017991,2]